bitfinex/quotes_ETHUSD_20220226
["timestamp","ask_amount","ask_price","bid_price","bid_amount"]
[1645856107927,2.7970367,2784.1,2782.3,0.3597]
[1645856107928,0.1436,2784.0,2782.9,0.00453141]
[1645856108128,3.6,2784.1,2782.9,0.00453141]
[1645856108327,1.5180919,2784.0,2782.9,0.00453141]
[1645856108726,1.5180919,2784.0,2783.3,1.22270978]
[1645856109129,3.6,2784.1,2783.6,6.11539641]
[1645856109328,0.511,2784.1,2783.6,12.23079282]
[1645856109528,1.40938,2784.1,2783.6,12.23079282]
[1645856110331,1.40938,2784.1,2783.7,0.00456353]
[1645856111382,1.40938,2784.1,2783.6,12.23079282]
[1645856111573,1.40938,2784.1,2783.8,0.00456349]
[1645856111772,1.30938,2784.1,2783.8,0.00456349]
[1645856112576,1.30938,2784.1,2783.6,12.23079282]
[1645856112776,1.30938,2784.1,2783.8,0.00456011]
[1645856113777,1.30938,2784.1,2783.6,12.23079282]
[1645856113977,1.30938,2784.1,2783.8,0.00456011]
[1645856114177,0.511,2784.1,2783.8,0.00456011]
[1645856114377,0.02348124,2784.1,2783.8,0.00456011]
[1645856114577,0.02348124,2784.1,2784.0,12.23079282]
[1645856116223,0.51515991,2784.8,2784.0,12.23079282]
[1645856116224,0.00415991,2784.8,2784.0,12.23079282]
[1645856116424,0.00415991,2784.8,2784.0,17.09049282]
[1645856116622,0.00871826,2785.1,2784.0,17.39049282]
[1645856116824,0.00455835,2785.1,2784.0,17.69049282]
[1645856117422,0.00415991,2785.2,2784.0,17.94049282]
[1645856117623,0.00455872,2785.1,2784.4,0.00455992]
[1645856118624,0.00415991,2785.3,2784.8,1.11123637]
[1645856118882,0.00415991,2785.3,2784.2,0.3597]
[1645856118883,0.00455888,2785.1,2784.5,0.00455984]
[1645856119678,0.00415991,2785.4,2784.3,4.5]
[1645856119879,0.00415991,2785.4,2784.8,12.23079282]
[1645856120183,0.00455886,2785.1,2785.0,1.02072182]
[1645856120387,0.59790246,2784.9,2784.8,13.67276968]
[1645856120783,0.59790246,2784.9,2784.8,12.23079282]
[1645856121785,0.0045589,2785.1,2784.9,0.3597]
[1645856121987,0.0045589,2785.1,2785.0,3.8597]
[1645856122187,0.00415991,2785.6,2785.0,3.8597]
[1645856122386,0.0021128,2785.1,2785.0,1.3]
[1645856122822,0.0021128,2785.1,2784.8,15.40989282]
[1645856123023,0.0021128,2785.1,2784.8,15.70989282]
[1645856123223,0.0021128,2785.1,2784.8,14.40989282]
[1645856123422,0.00844962,2785.7,2784.8,14.40989282]
[1645856123423,11.89011899,2786.0,2784.8,14.40989282]
[1645856123624,0.00211264,2785.1,2784.8,14.40989282]
[1645856123821,0.02624422,2785.0,2784.8,12.23079282]
[1645856124922,0.02624422,2785.0,2784.7,1.1739]
[1645856125122,0.02624422,2785.0,2784.8,6.11539641]
[1645856125524,0.02624422,2785.0,2784.9,1.40925401]
[1645856126380,0.02624422,2785.0,2784.8,6.11539641]
[1645856126774,0.0045623,2785.1,2784.9,3.5]
[1645856126973,0.8977,2786.3,2784.9,3.5]
[1645856126974,0.00415991,2785.5,2784.9,3.5]
[1645856127271,0.0046442,2785.1,2784.9,4.5]
[1645856127472,0.0046442,2785.1,2785.0,4.69801088]
[1645856127672,0.0046442,2785.1,2785.0,4.99801088]
[1645856127971,0.0046442,2785.1,2785.0,5.99801088]
[1645856128176,0.00415991,2786.3,2785.0,5.99801088]
[1645856128373,0.00415991,2786.3,2785.1,0.3597]
[1645856128374,0.00464423,2785.2,2785.1,0.3597]
[1645856128573,0.00464423,2785.2,2785.1,3.8597]
[1645856128773,0.00464423,2785.2,2785.1,1.3597]
[1645856128987,0.00464423,2785.2,2785.1,0.3597]
[1645856129374,0.00415991,2786.3,2785.1,0.3597]
[1645856129572,0.00464415,2785.3,2785.1,0.3597]
[1645856129772,0.00464415,2785.3,2785.2,0.3]
[1645856129971,0.00464415,2785.3,2785.1,0.3597]
[1645856130214,0.00464415,2785.3,2785.2,6.11539641]
[1645856130413,0.00464415,2785.3,2785.2,12.53079282]
[1645856130616,0.00415991,2786.3,2785.2,13.53079282]
[1645856130819,0.00423808,2785.4,2785.2,13.53079282]
[1645856131620,0.00423808,2785.4,2785.2,12.23079282]
[1645856131817,0.511,2785.9,2785.2,12.23079282]
[1645856132019,0.00423804,2785.4,2785.2,12.23079282]
[1645856133023,0.511,2785.6,2785.2,12.23079282]
[1645856133220,0.00423804,2785.4,2785.2,12.23079282]
[1645856133423,1.40927842,2785.4,2785.2,12.23079282]
[1645856133621,0.511,2785.3,2785.2,12.23079282]
[1645856133881,1.4066,2785.3,2785.2,12.23079282]
[1645856135280,1.4066,2785.3,2785.2,12.22979282]
[1645856135482,1.4066,2785.3,2785.2,6.11539641]
[1645856135681,1.4066,2785.3,2785.2,12.22979282]
[1645856136783,0.511,2785.3,2785.2,12.22979282]
[1645856138630,10.98,2785.6,2785.2,12.22979282]
[1645856138833,0.511,2785.6,2785.2,12.22979282]
[1645856139031,0.89797,2785.4,2785.2,6.11439641]
[1645856139331,0.511,2785.3,2785.2,6.11439641]
[1645856140330,0.511,2785.3,2785.2,4.49587857]
[1645856140730,0.511,2785.3,2784.6,1.29465318]
[1645856140932,0.51515991,2785.3,2784.3,7.64]
[1645856141131,0.51515991,2785.3,2785.0,4.49587857]
[1645856141373,0.511,2785.3,2785.0,4.49587857]
[1645856144170,0.511,2785.3,2785.2,6.11539641]
[1645856146633,0.511,2785.3,2785.2,10.61127498]
[1645856149171,2.0284238,2785.3,2785.2,10.61127498]
[1645856150774,0.511,2785.3,2785.2,10.61127498]
[1645856151277,2.02836382,2785.3,2785.2,10.61127498]
[1645856151675,2.02837012,2785.3,2785.2,10.61127498]
[1645856152077,0.511,2785.3,2785.2,10.61127498]
[1645856155133,0.00485811,2785.5,2785.2,10.61127498]
[1645856155333,0.00485811,2785.5,2785.2,4.49587857]
[1645856155532,0.00485811,2785.5,2784.7,0.00485955]
[1645856155734,0.51515991,2785.7,2785.4,6.11539641]
[1645856155932,1.5172844,2785.6,2785.4,6.11539641]
[1645856156134,0.5158582,2785.5,2785.4,6.11539641]
[1645856156377,2.0331426,2785.5,2785.4,6.11539641]
[1645856156972,2.0282844,2785.5,2785.4,6.11539641]
[1645856160416,2.0282844,2785.5,2785.4,4.49684152]
[1645856160615,2.0282844,2785.5,2785.1,4.49587857]
[1645856160817,1.5172844,2785.4,2784.7,0.00485972]
[1645856161015,2.9262344,2785.4,2785.3,4.49684152]
[1645856162618,13.9062344,2785.4,2785.3,4.49684152]
[1645856162818,3.5,2785.3,2785.0,4.49587857]
[1645856163021,15.98,2785.1,2785.0,4.49587857]
[1645856163222,18.0082844,2785.1,2784.4,0.25]
[1645856163419,10.98,2784.9,2784.7,0.00485964]
[1645856163619,4.72371833,2784.8,2784.7,0.00485964]
[1645856163883,15.70371833,2784.8,2784.7,0.00485964]
[1645856164071,4.72371833,2784.8,2784.7,0.00485964]
[1645856164371,4.72371833,2784.8,2784.6,0.0048593]
[1645856164575,1.51778743,2784.7,2784.6,0.0048593]
[1645856164777,2.92709653,2784.7,2784.6,0.0048593]
[1645856165476,2.92709653,2784.7,2783.8,0.25]
[1645856165678,1.51778743,2784.6,2784.5,0.00485939]
[1645856165979,2.02878743,2784.6,2784.5,0.00485939]
[1645856166579,2.02878743,2784.6,2783.8,0.25]
[1645856166777,1.51778743,2784.5,2783.6,3.5]
[1645856166976,1.51778743,2784.5,2783.5,1.1936]
[1645856166977,0.8983091,2784.7,2784.4,0.00485947]
[1645856167178,1.5177203,2784.6,2784.4,0.00485947]
[1645856167379,0.511,2784.5,2784.4,0.00485947]
[1645856167627,2.0287203,2784.5,2784.4,0.00485947]
[1645856167832,2.0287203,2784.5,2783.5,1.1936]
[1645856168033,0.511,2784.5,2784.3,0.00485956]
[1645856169038,0.511,2784.5,2783.5,1.1936]
[1645856169235,0.511,2784.5,2784.3,0.00485961]
[1645856170236,0.511,2784.5,2783.5,1.5533]
[1645856170437,0.511,2784.5,2784.3,0.00485961]
[1645856171463,0.511,2784.5,2783.8,1.28155759]
[1645856171663,0.511,2784.5,2784.3,0.00485961]
[1645856172671,0.511,2784.5,2783.8,1.28155759]
[1645856172869,0.511,2784.5,2784.3,0.00485961]
[1645856173871,0.511,2784.5,2783.5,1.1936]
[1645856174074,0.511,2784.5,2784.3,0.00485961]
[1645856175118,0.511,2784.5,2783.6,0.3597]
[1645856175320,0.511,2784.5,2784.3,0.00485961]
[1645856176219,0.511,2784.5,2783.6,0.3597]
[1645856176423,0.511,2784.5,2784.3,0.00485961]
[1645856177422,0.511,2784.5,2783.8,1.21871167]
[1645856177623,0.511,2784.5,2784.3,0.00485961]
[1645856178624,0.511,2784.5,2783.5,1.1936]
[1645856178894,0.511,2784.5,2784.3,0.00485961]
[1645856179883,0.511,2784.5,2783.8,1.38480302]
[1645856180082,0.511,2784.5,2784.3,0.00485961]
[1645856180984,0.511,2784.5,2783.5,1.1936]
[1645856181387,0.511,2784.5,2784.3,0.00485961]
[1645856182183,0.511,2784.5,2783.5,1.1936]
[1645856182384,0.511,2784.5,2784.3,0.00485961]
[1645856183425,0.511,2784.5,2783.5,1.1936]
[1645856183624,0.511,2784.5,2784.3,0.00485961]
[1645856183824,1.51773391,2784.4,2784.3,0.00485961]
[1645856184026,2.02873391,2784.4,2784.3,0.00485961]
[1645856184626,2.02873391,2784.4,2783.5,1.1936]
[1645856184826,0.511,2784.4,2784.2,0.00485965]
[1645856185025,0.50952896,2784.4,2784.2,0.00485965]
[1645856185825,0.50952896,2784.4,2783.5,1.1936]
[1645856185826,1.51778065,2784.3,2783.5,1.1936]
[1645856186027,2.02878065,2784.3,2784.2,0.00485969]
[1645856186868,0.511,2784.3,2784.2,0.00485969]
[1645856187068,0.511,2784.3,2783.5,1.1936]
[1645856187268,0.511,2784.3,2784.1,0.00485974]
[1645856188274,0.511,2784.3,2783.5,1.1936]
[1645856188471,0.511,2784.3,2784.1,0.00485978]
[1645856189470,0.511,2784.3,2783.5,1.1936]
[1645856189671,0.511,2784.3,2784.1,0.00485978]
[1645856190724,0.511,2784.3,2783.5,2.30374521]
[1645856190928,0.511,2784.3,2784.1,0.00485978]
[1645856191827,0.511,2784.3,2783.5,2.30374521]
[1645856192027,0.511,2784.3,2784.1,0.00485978]
[1645856193028,0.511,2784.3,2783.5,2.30374521]
[1645856193228,0.511,2784.3,2784.1,0.00485978]
[1645856194267,0.511,2784.3,2783.5,2.30374521]
[1645856194469,0.511,2784.3,2784.1,0.00485978]
[1645856195470,0.511,2784.3,2783.5,2.30374521]
[1645856195671,0.511,2784.3,2784.1,0.00485978]
[1645856196673,0.511,2784.3,2783.5,2.30374521]
[1645856196873,0.511,2784.3,2784.1,0.00485978]
[1645856197923,0.511,2784.3,2783.5,2.30374521]
[1645856198123,0.511,2784.3,2784.1,0.00485978]
[1645856199028,0.511,2784.3,2783.5,2.30374521]
[1645856199229,1.51781346,2784.2,2784.1,0.00485978]
[1645856199428,2.02881346,2784.2,2784.1,0.00485978]
[1645856200232,2.02881346,2784.2,2783.5,2.30374521]
[1645856200429,0.511,2784.2,2784.0,0.00485983]
[1645856201470,0.511,2784.2,2783.5,2.30374521]
[1645856201667,0.511,2784.2,2784.0,1.32067023]
[1645856202265,0.511,2784.2,2784.0,0.00485987]
[1645856202669,0.511,2784.2,2783.5,1.1936]
[1645856202868,0.8983091,2784.7,2783.5,1.1936]
[1645856203070,0.8983091,2784.7,2784.0,0.00485987]
[1645856203071,0.511,2784.5,2784.0,0.00485987]
[1645856203270,0.511,2784.5,2784.2,1.14570511]
[1645856203271,1.51770671,2784.4,2784.2,1.14570511]
[1645856203470,1.51770671,2784.4,2784.0,0.00485987]
[1645856203871,1.51770671,2784.4,2783.5,1.1936]
[1645856204070,1.51770671,2784.4,2784.1,0.00485978]
[1645856204869,2.02870671,2784.4,2784.1,0.00485978]
[1645856205117,1.51770671,2784.3,2784.0,1.12405372]
[1645856205317,1.51770671,2784.3,2784.1,0.00485974]
[1645856205719,1.51770671,2784.5,2784.1,0.00485974]
[1645856205918,1.51768865,2784.4,2784.1,0.00485974]
[1645856206119,1.51768865,2784.3,2784.1,0.00485974]
[1645856206320,0.511,2784.6,2784.0,1.12405372]
[1645856206524,1.51768071,2784.5,2784.1,0.00485974]
[1645856206929,2.02868071,2784.4,2784.1,0.00485974]
[1645856207129,1.51768071,2784.3,2784.1,0.00485974]
[1645856207530,1.51768071,2784.3,2783.5,1.1936]
[1645856207729,1.51768071,2784.3,2784.1,0.00485978]
[1645856208131,1.51654735,2784.3,2784.1,0.00485978]
[1645856208731,1.51654735,2784.3,2783.8,1.11860247]
[1645856208975,1.51654735,2784.3,2784.1,0.00485978]
[1645856209875,1.51654735,2784.3,2783.8,1.11860247]
[1645856210076,1.51654735,2784.3,2784.1,0.00485978]
[1645856210976,1.51654735,2784.3,2783.8,1.11860247]
[1645856211378,1.51654735,2784.3,2784.1,0.00485978]
[1645856212178,1.51654735,2784.3,2783.8,1.11860247]
[1645856212620,1.51654735,2784.3,2784.1,0.00485978]
[1645856213425,1.51654735,2784.3,2783.8,1.11860247]
[1645856213625,1.51654735,2784.3,2784.1,0.00485978]
[1645856214626,1.4093091,2784.7,2783.5,5.0533]
[1645856214825,1.4093091,2784.7,2783.5,6.3533]
[1645856215034,1.4093091,2784.7,2784.1,0.00485978]
[1645856215932,1.4093091,2784.7,2784.0,1.38809463]
[1645856215933,0.511,2784.7,2784.0,1.38809463]
[1645856216131,0.511,2784.7,2784.3,0.00485961]
[1645856216986,0.511,2784.7,2784.0,1.38809463]
[1645856217376,0.511,2784.7,2784.4,0.00485952]
[1645856218178,0.511,2784.7,2783.5,6.3533]
[1645856218378,0.511,2784.7,2783.5,2.8533]
[1645856218577,0.511,2784.7,2784.4,0.00485947]
[1645856219380,0.511,2784.7,2783.5,2.4936]
[1645856219684,0.511,2784.7,2784.4,0.00470638]
[1645856220823,0.511,2784.7,2784.0,1.0832185]
[1645856221023,0.511,2784.7,2784.4,0.00470638]
[1645856221822,0.511,2784.7,2783.5,1.1936]
[1645856222022,0.511,2784.7,2784.0,1.07946697]
[1645856222225,0.511,2784.7,2784.4,0.00470638]
[1645856223028,0.511,2784.7,2784.0,1.07946697]
[1645856223226,0.511,2784.7,2784.4,0.00485947]
[1645856224270,0.511,2784.7,2783.5,1.1936]
[1645856224470,0.511,2784.7,2784.4,0.00485947]
[1645856225473,0.511,2784.7,2784.0,1.30846023]
[1645856225673,0.511,2784.7,2784.4,0.00485947]
[1645856226075,0.00971893,2784.3,2784.0,1.30846023]
[1645856226876,0.00971893,2784.3,2784.0,1.30688607]
[1645856230535,0.00971893,2784.3,2784.0,1.3117459]
[1645856231390,0.00971893,2784.3,2784.0,1.66658607]
[1645856231595,0.00971893,2784.3,2784.0,6.96658607]
[1645856231803,0.00971893,2784.3,2784.0,6.9714459]
[1645856231999,0.00971893,2784.3,2784.2,5.3597]
[1645856232399,0.00971893,2784.3,2784.2,7.4839]
[1645856232800,0.00971893,2784.3,2784.2,8.4839]
[1645856233601,0.00971893,2784.3,2784.2,3.4839]
[1645856233806,0.00971893,2784.3,2784.2,2.6597]
[1645856234201,0.00971893,2784.3,2784.2,1.6597]
[1645856234501,0.00971893,2784.3,2784.2,2.6597]
[1645856235127,0.00971893,2784.3,2784.2,1.6597]
[1645856235328,0.00971893,2784.3,2784.2,2.6597]
[1645856235528,0.00971893,2784.3,2784.2,6.6597]
[1645856235727,0.00971893,2784.3,2784.2,2.6597]
[1645856235925,0.00971893,2784.3,2784.2,1.6597]
[1645856236828,0.00971893,2784.3,2784.2,1.3]
[1645856237027,0.00971893,2784.3,2784.2,0.3]
[1645856237226,0.00971893,2784.3,2784.1,5.90155974]
[1645856237425,0.00971893,2784.3,2784.1,5.8967]
[1645856237627,0.00971893,2784.3,2784.1,5.537]
[1645856237831,0.00971893,2784.3,2784.1,5.54185974]
[1645856238628,0.00971893,2784.3,2784.1,5.537]
[1645856239080,0.00971893,2784.3,2784.1,5.54185978]
[1645856239882,0.00971893,2784.3,2784.1,5.537]
[1645856240081,0.00971893,2784.3,2784.1,5.54185978]
[1645856240281,0.00971893,2784.3,2784.1,5.24185978]
[1645856241085,0.00971893,2784.3,2784.1,5.237]
[1645856241390,0.00971893,2784.3,2784.1,5.24185978]
[1645856242285,0.00971893,2784.3,2784.1,5.537]
[1645856242485,0.00971893,2784.3,2784.1,5.54185978]
[1645856243537,0.00971893,2784.3,2784.1,5.537]
[1645856243738,0.00971893,2784.3,2784.1,5.54185978]
[1645856244738,0.00971893,2784.3,2784.1,5.537]
[1645856244939,0.00971893,2784.3,2784.1,5.54185978]
[1645856245143,0.00971893,2784.3,2784.1,5.90155978]
[1645856245939,0.00971893,2784.3,2784.1,5.8967]
[1645856246141,0.00971893,2784.3,2784.1,5.90155978]
[1645856247172,0.00831241,2784.3,2784.1,5.8967]
[1645856247375,0.00831241,2784.3,2784.1,5.90155978]
[1645856247775,0.00831241,2784.3,2784.1,6.90155978]
[1645856248386,0.00831241,2784.3,2784.1,6.8967]
[1645856248577,0.00831241,2784.3,2784.1,6.90155978]
[1645856249579,0.00831241,2784.3,2784.1,6.8967]
[1645856249780,0.00831241,2784.3,2784.1,6.90155978]
[1645856250840,0.00831241,2784.3,2784.1,6.8967]
[1645856251042,0.00831241,2784.3,2784.1,6.90155978]
[1645856251839,0.00831241,2784.3,2784.1,6.8967]
[1645856252039,0.00831241,2784.3,2784.1,6.90155978]
[1645856253039,0.00831241,2784.3,2784.1,6.8967]
[1645856253241,0.00831241,2784.3,2784.1,6.90155978]
[1645856253441,0.00831241,2784.3,2784.2,5.0]
[1645856253644,0.00831241,2784.3,2784.2,5.3597]
[1645856253871,0.00831241,2784.3,2784.2,6.3597]
[1645856254582,0.00831241,2784.3,2784.2,1.3597]
[1645856254782,0.00831241,2784.3,2784.2,0.3597]
[1645856254984,0.00831241,2784.3,2784.2,5.3597]
[1645856255183,0.00831241,2784.3,2784.2,1.3597]
[1645856255388,0.00831241,2784.3,2784.2,17.55426438]
[1645856255583,0.00831241,2784.3,2784.2,16.55426438]
[1645856255788,0.00831241,2784.3,2784.2,17.55426438]
[1645856257285,0.00831241,2784.3,2784.2,12.55426438]
[1645856257484,0.00831241,2784.3,2784.2,17.55426438]
[1645856257729,0.00831241,2784.3,2784.2,12.55426438]
[1645856258128,0.00831241,2784.3,2784.2,17.55426438]
[1645856259328,0.00831241,2784.3,2784.2,12.55426438]
[1645856260431,0.00831241,2784.3,2784.2,1.57426438]
[1645856260831,0.00831241,2784.3,2784.2,0.21456438]
[1645856261032,0.00831241,2784.3,2784.1,5.54185974]
[1645856261236,0.00831241,2784.3,2784.1,4.24185974]
[1645856261490,0.00831241,2784.3,2784.1,4.237]
[1645856261889,0.00831241,2784.3,2784.1,1.13125978]
[1645856262688,0.00831241,2784.3,2783.6,6.56989]
[1645856262689,1.41377381,2784.3,2783.6,4.7741]
[1645856262889,1.41377381,2784.3,2783.5,1.155]
[1645856262890,0.00831241,2784.3,2783.5,1.155]
[1645856263088,0.00831241,2784.3,2784.1,0.00485978]
[1645856263491,2.07891015,2784.2,2784.1,0.00485978]
[1645856263693,2.07891015,2784.2,2783.3,0.01944472]
[1645856263694,0.00971955,2784.0,2783.3,0.01944472]
[1645856263896,2.17251014,2783.9,2783.2,0.25]
[1645856264089,2.17251014,2783.9,2782.9,0.00310603]
[1645856264090,15.99791014,2783.8,2782.9,0.00310603]
[1645856264290,2.17251014,2783.7,2782.9,0.00310603]
[1645856264489,3.5,2783.6,2782.5,0.00310603]
[1645856264690,0.511,2783.5,2782.5,0.00310603]
[1645856266132,3.5,2783.4,2782.5,0.00310603]
[1645856266332,0.511,2783.3,2782.5,0.00310603]
[1645856268039,3.09738,2783.8,2782.8,0.00486093]
[1645856268040,0.511,2783.8,2782.8,0.00486093]
[1645856268237,0.90814855,2784.0,2782.8,0.00486093]
[1645856268238,0.00971955,2784.0,2782.8,0.00486093]
[1645856268881,0.00971955,2784.0,2782.8,0.00796696]
[1645856269176,0.00971955,2784.0,2783.3,1.41280704]
[1645856270074,0.00971955,2784.0,2783.3,1.40794655]
[1645856270275,0.00971955,2784.0,2783.5,0.00486027]
[1645856271175,0.00971955,2784.0,2783.3,1.40794655]
[1645856271376,0.00971955,2784.0,2783.6,0.00486018]
[1645856271980,0.00971955,2784.0,2783.7,0.1436]
[1645856272181,0.00971955,2784.0,2783.8,1.20405557]
[1645856272481,0.00971955,2784.0,2783.9,0.1436]
[1645856273136,0.00971955,2784.0,2783.8,1.50405557]
[1645856273741,0.00971955,2784.0,2783.8,1.50860058]
[1645856274739,0.00971955,2784.0,2783.8,1.50405557]
[1645856274941,0.00971955,2784.0,2783.8,1.50860058]
[1645856275943,0.00971955,2784.0,2783.8,1.50405557]
[1645856276143,0.00971955,2784.0,2783.8,1.50860058]
[1645856277089,0.00971955,2784.0,2783.8,1.50405557]
[1645856277282,0.00971955,2784.0,2783.8,1.65221059]
[1645856279692,0.00971955,2784.0,2783.8,1.50861059]
[1645856281047,0.00971955,2784.0,2783.9,0.3597]
[1645856281247,0.00971955,2784.0,2783.8,6.36831059]
[1645856281446,0.00971955,2784.0,2783.8,6.00861059]
[1645856281648,0.00971955,2784.0,2783.8,2.50861059]
[1645856281849,0.00971955,2784.0,2783.8,1.50861059]
[1645856282047,0.00971955,2784.0,2783.8,2.50861059]
[1645856282250,0.00971955,2784.0,2783.8,1.50861059]
[1645856282449,0.00971955,2784.0,2783.8,2.50861059]
[1645856283650,0.00971955,2784.0,2783.8,1.50861059]
[1645856283881,0.00971955,2784.0,2783.8,2.50861059]
[1645856284078,0.00971955,2784.0,2783.8,1.50861059]
[1645856284377,0.00971955,2784.0,2783.8,2.50861059]
[1645856284578,0.00971955,2784.0,2783.8,1.50861059]
[1645856285278,0.00971955,2784.0,2783.8,1.50405557]
[1645856286087,0.00827385,2784.0,2783.8,1.50405557]
[1645856288939,0.00831241,2784.3,2783.8,1.50405557]
[1645856289238,0.00416033,2785.1,2784.3,0.94209159]
[1645856289437,3.13156033,2785.2,2784.3,0.94209159]
[1645856289637,3.64256033,2785.2,2784.3,0.94209159]
[1645856289836,3.78616033,2785.2,2784.3,0.94209159]
[1645856291039,3.78616033,2785.2,2784.5,1.18371185]
[1645856291240,0.65876033,2785.2,2784.3,0.94209159]
[1645856291481,0.51516033,2785.2,2784.3,0.94209159]
[1645856293486,0.51516033,2785.2,2784.5,1.21094753]
[1645856293887,0.51516033,2785.2,2784.3,0.94209159]
[1645856294693,0.00485881,2784.9,2784.3,0.94209159]
[1645856294892,0.90300881,2784.9,2784.3,0.94209159]
[1645856295133,1.41400881,2784.9,2784.3,0.94209159]
[1645856295552,1.40915,2784.9,2784.3,0.94209159]
[1645856295933,0.00485879,2784.8,2784.3,0.94209159]
[1645856296132,0.511,2784.7,2784.3,0.94209159]
[1645856296738,3.2058326,2784.7,2784.3,0.94209159]
[1645856296935,1.51778244,2784.6,2784.3,0.94209159]
[1645856297134,0.511,2784.5,2784.3,0.94209159]
[1645856305540,1.51784164,2784.4,2784.3,0.94209159]
[1645856305745,2.02884164,2784.4,2784.3,0.94209159]
[1645856305944,0.511,2784.4,2784.3,0.94209159]
[1645856306142,11.491,2784.4,2784.3,0.94049601]
[1645856306384,2.02884358,2784.4,2784.3,0.94049601]
[1645856306989,2.02884925,2784.4,2784.3,0.94049601]
[1645856307400,0.511,2784.4,2784.3,0.94049601]
[1645856310739,2.02881657,2784.4,2784.3,0.94049601]
[1645856313046,2.02876294,2784.4,2784.3,0.94049601]
[1645856313250,2.028762,2784.4,2784.3,0.94049601]
[1645856322984,0.511,2784.4,2784.3,0.94049601]
[1645856324384,0.511,2784.7,2784.3,0.94049601]
[1645856324584,1.51764528,2784.6,2784.3,0.94049601]
[1645856324792,0.511,2784.7,2784.3,0.94049601]
[1645856327545,0.511,2784.7,2784.3,2.04292023]
[1645856329289,0.511,2784.7,2784.3,0.94049601]
[1645856330090,0.50995989,2784.7,2784.3,0.94049601]
[1645856330290,0.50995989,2784.7,2784.4,1.13293117]
[1645856330787,0.50995989,2784.7,2784.3,0.94049601]
[1645856334635,0.50995989,2784.7,2784.3,2.02625323]
[1645856334835,0.50995989,2784.7,2784.3,0.94049601]
[1645856340435,1.51764365,2784.6,2784.3,0.94049601]
[1645856342340,2.02864365,2784.6,2784.3,0.94049601]
[1645856342542,1.51764365,2784.5,2784.3,0.94049601]
[1645856342741,0.511,2784.4,2784.3,0.94049601]
[1645856343543,2.02872268,2784.4,2784.3,0.94049601]
[1645856344392,0.67863017,2784.2,2784.0,0.00426347]
[1645856344593,2.02872268,2784.1,2784.0,0.00426347]
[1645856344798,2.02872268,2784.1,2783.8,0.00310603]
[1645856344992,1.51772268,2784.0,2783.5,0.00310603]
[1645856345193,0.511,2783.9,2783.3,0.01705715]
[1645856345991,0.511,2783.9,2783.2,0.00310603]
[1645856346392,0.511,2783.9,2783.5,0.00426367]
[1645856347296,0.511,2783.9,2783.2,0.00310603]
[1645856347495,0.511,2783.9,2783.6,0.00426359]
[1645856348542,0.511,2783.9,2783.2,0.00310603]
[1645856348746,0.511,2783.9,2783.6,0.00427405]
[1645856349744,0.511,2783.9,2783.3,0.00310603]
[1645856349948,0.511,2783.9,2783.6,0.00428445]
[1645856350950,0.511,2783.9,2783.3,0.00310603]
[1645856351148,0.511,2783.9,2783.6,0.00428445]
[1645856352033,0.511,2783.9,2783.2,0.02024641]
[1645856352034,0.511,2783.9,2783.2,0.00310603]
[1645856352235,0.511,2783.9,2783.6,0.00428268]
[1645856353239,0.511,2783.9,2783.2,0.00310603]
[1645856353441,0.511,2783.9,2783.6,0.00428094]
[1645856354042,0.511,2783.9,2783.6,0.00290765]
[1645856354540,0.511,2783.9,2783.2,0.00310603]
[1645856354941,0.511,2783.9,2783.0,1.97000603]
[1645856356845,0.89855,2783.7,2783.0,1.97000603]
[1645856357044,0.89855,2783.7,2783.0,0.1436]
[1645856357045,0.8986661,2783.5,2783.0,0.1436]
[1645856357243,0.511,2783.4,2783.0,0.1436]
[1645856362201,11.491,2783.4,2782.6,0.00310603]
[1645856362400,13.58849,2783.4,2782.5,0.25]
[1645856362640,0.8987384,2783.1,2782.4,0.00310603]
[1645856362845,0.511,2783.0,2782.4,0.00310603]
[1645856366149,0.511,2783.0,2782.6,0.0048611]
[1645856366794,0.511,2783.0,2782.4,0.00310603]
[1645856366995,0.511,2783.0,2782.7,0.00453491]
[1645856368001,0.811,2783.0,2782.3,0.00310603]
[1645856368199,0.811,2783.0,2782.7,0.00453486]
[1645856369199,0.811,2783.0,2782.3,0.00310603]
[1645856369401,0.811,2783.0,2782.7,0.00453486]
[1645856370440,0.811,2783.0,2782.3,0.00310603]
[1645856370647,0.811,2783.0,2782.7,0.00453486]
[1645856370648,17.77775,2782.9,2782.7,0.00453486]
[1645856370845,11.491,2782.8,2782.7,0.00453486]
[1645856371244,12.791,2782.8,2782.7,0.00453486]
[1645856371444,12.791,2782.8,2782.3,0.01814217]
[1645856371445,10.98,2782.6,2782.3,0.01814217]
[1645856371645,0.511,2782.5,2781.8,0.00310603]
[1645856371844,0.89898,2782.4,2781.8,0.00310603]
[1645856372046,0.511,2782.3,2781.8,0.00310603]
[1645856372245,0.511,2782.3,2781.7,0.01143448]
[1645856372944,0.89898,2782.4,2781.7,0.01143448]
[1645856373150,1.0,2782.7,2781.7,0.01454051]
[1645856373344,0.05236004,2783.4,2782.3,1.26229564]
[1645856373544,0.511,2783.3,2782.4,1.19390603]
[1645856373747,2.3084837,2783.3,2782.4,1.19390603]
[1645856373999,13.2884837,2783.3,2782.4,1.19390603]
[1645856374200,0.1436,2783.2,2782.6,0.00245035]
[1645856374398,0.511,2783.1,2782.6,0.00245035]
[1645856374600,0.811,2783.1,2782.6,0.00245035]
[1645856374800,0.8987338,2783.0,2782.6,0.00245035]
[1645856375000,0.511,2782.9,2782.6,0.00245035]
[1645856375200,0.511,2782.9,2782.0,0.00310603]
[1645856375399,0.511,2782.9,2782.6,0.00486119]
[1645856376403,0.511,2782.9,2782.0,0.00310603]
[1645856376604,0.511,2782.9,2782.6,0.00486115]
[1645856377631,0.511,2782.9,2782.3,0.00310603]
[1645856377838,0.511,2782.9,2782.6,0.00486115]
[1645856378838,0.511,2782.9,2782.1,0.00310603]
[1645856379038,0.511,2782.9,2782.6,0.00486115]
[1645856380039,0.511,2782.9,2782.1,0.00310603]
[1645856380240,0.511,2782.9,2782.6,0.00486115]
[1645856381246,0.511,2782.9,2782.3,1.11743159]
[1645856381488,0.511,2782.9,2782.6,0.00486115]
[1645856382494,0.511,2782.9,2782.2,1.03408178]
[1645856382695,0.511,2782.9,2782.6,0.00486115]
[1645856383502,10.98,2782.8,2782.6,0.00486115]
[1645856383704,10.98,2782.8,2782.0,0.00310603]